[Event "Late-Titled-Tuesday-Blitz-October-24-2023"]
[Site "Chess.com"]
[Date "2023.10.24"]
[Round "10"]
[White "jcibarra"]
[Black "chess94cu"]
[Result "1-0"]
[WhiteElo "2907"]
[BlackElo "2651"]
[TimeControl "180+1"]
[EndTime "15:58:03 PDT"]
[Termination "jcibarra won by checkmate"]

1. e4 {[%clk 0:03:00.9]} 1... c6 {[%clk 0:02:57.6]} 2. Nf3 {[%clk 0:03:00.4]}
2... d5 {[%clk 0:02:58.4]} 3. d3 {[%clk 0:03:00.2]} 3... Bg4 {[%clk 0:02:55.1]}
4. h3 {[%clk 0:02:59.1]} 4... Bxf3 {[%clk 0:02:54.9]} 5. Qxf3 {[%clk 0:02:58.7]}
5... e6 {[%clk 0:02:55.7]} 6. g3 {[%clk 0:02:58.6]} 6... Nd7 {[%clk 0:02:53.3]}
7. Bg2 {[%clk 0:02:58.1]} 7... Ngf6 {[%clk 0:02:53.9]} 8. O-O {[%clk 0:02:57.7]}
8... Bc5 {[%clk 0:02:53.5]} 9. c3 {[%clk 0:02:55]} 9... d4 {[%clk 0:02:52]} 10.
Nd2 {[%clk 0:02:50.4]} 10... dxc3 {[%clk 0:02:42]} 11. Nb3 {[%clk 0:02:48.6]}
11... Bb6 {[%clk 0:02:40.3]} 12. d4 {[%clk 0:02:44.9]} 12... cxb2 {[%clk
0:02:39.3]} 13. Bxb2 {[%clk 0:02:45.5]} 13... O-O {[%clk 0:02:35.8]} 14. Rac1
{[%clk 0:02:42.9]} 14... Qe7 {[%clk 0:02:32.7]} 15. Rfd1 {[%clk 0:02:37]} 15...
Rfd8 {[%clk 0:02:31.5]} 16. Nd2 {[%clk 0:02:33.3]} 16... e5 {[%clk 0:02:24.7]}
17. Ba3 {[%clk 0:02:28.9]} 17... Qe8 {[%clk 0:02:18]} 18. Nc4 {[%clk 0:02:24.8]}
18... Bxd4 {[%clk 0:02:13.9]} 19. Nd6 {[%clk 0:01:59.8]} 19... Qe6 {[%clk
0:02:13.5]} 20. Bf1 {[%clk 0:01:55.9]} 20... Nb6 {[%clk 0:01:30]} 21. Nf5 {[%clk
0:01:43.8]} 21... Rd7 {[%clk 0:01:21.4]} 22. h4 {[%clk 0:01:42.8]} 22... Rad8
{[%clk 0:01:20]} 23. Bh3 {[%clk 0:01:41.6]} 23... Qe8 {[%clk 0:01:19]} 24. Nh6+
{[%clk 0:01:33.4]} 24... Kh8 {[%clk 0:01:19.1]} 25. Bxd7 {[%clk 0:01:26.2]}
25... Rxd7 {[%clk 0:01:20]} 26. Nf5 {[%clk 0:01:23.3]} 26... Qe6 {[%clk
0:01:14.2]} 27. Nxd4 {[%clk 0:01:14.4]} 27... exd4 {[%clk 0:01:15.1]} 28. Bb2
{[%clk 0:01:07.2]} 28... Qxe4 {[%clk 0:01:07.1]} 29. Qxe4 {[%clk 0:01:01.7]}
29... Nxe4 {[%clk 0:01:08]} 30. Bxd4 {[%clk 0:00:59.2]} 30... Nd5 {[%clk
0:01:01.4]} 31. Bxa7 {[%clk 0:00:50.8]} 31... h5 {[%clk 0:01:00.7]} 32. Bd4
{[%clk 0:00:48.1]} 32... Kh7 {[%clk 0:00:59.8]} 33. a4 {[%clk 0:00:46.7]} 33...
Kg6 {[%clk 0:00:56.4]} 34. Kg2 {[%clk 0:00:46.7]} 34... f6 {[%clk 0:00:54.9]}
35. Kf3 {[%clk 0:00:44.7]} 35... Nd6 {[%clk 0:00:55.1]} 36. Bc5 {[%clk
0:00:40.6]} 36... Nf5 {[%clk 0:00:53.1]} 37. a5 {[%clk 0:00:38.2]} 37... Nh6
{[%clk 0:00:51.7]} 38. Rb1 {[%clk 0:00:36.4]} 38... Ng4 {[%clk 0:00:51.9]} 39.
Rb3 {[%clk 0:00:29.7]} 39... Ne5+ {[%clk 0:00:51.7]} 40. Ke2 {[%clk 0:00:30.1]}
40... Rd8 {[%clk 0:00:34.7]} 41. Ra1 {[%clk 0:00:22.8]} 41... Rd7 {[%clk
0:00:28.3]} 42. Rab1 {[%clk 0:00:21.7]} 42... Nc4 {[%clk 0:00:28.9]} 43. Ra1
{[%clk 0:00:18.6]} 43... Kf5 {[%clk 0:00:27.9]} 44. Ra4 {[%clk 0:00:17.7]} 44...
Ne5 {[%clk 0:00:26.9]} 45. Kf1 {[%clk 0:00:18]} 45... g5 {[%clk 0:00:19.2]} 46.
hxg5 {[%clk 0:00:17.3]} 46... fxg5 {[%clk 0:00:20.1]} 47. Ra1 {[%clk 0:00:17.3]}
47... g4 {[%clk 0:00:20.3]} 48. Rab1 {[%clk 0:00:17.6]} 48... Nc4 {[%clk
0:00:19.1]} 49. Rxb7 {[%clk 0:00:17.5]} 49... Rxb7 {[%clk 0:00:18.8]} 50. Rxb7
{[%clk 0:00:18.4]} 50... Nxa5 {[%clk 0:00:18.6]} 51. Rh7 {[%clk 0:00:17]} 51...
Kg6 {[%clk 0:00:18.4]} 52. Rd7 {[%clk 0:00:17.5]} 52... Kf5 {[%clk 0:00:17.1]}
53. Bd4 {[%clk 0:00:14]} 53... Nb3 {[%clk 0:00:16.2]} 54. Bb2 {[%clk 0:00:13.9]}
54... Nd2+ {[%clk 0:00:16]} 55. Ke2 {[%clk 0:00:12.7]} 55... Ne4 {[%clk
0:00:16.5]} 56. Ba1 {[%clk 0:00:12.3]} 56... Kg6 {[%clk 0:00:13.8]} 57. Rg7+
{[%clk 0:00:11.8]} 57... Kf5 {[%clk 0:00:13.7]} 58. Rg8 {[%clk 0:00:12]} 58...
Ndc3+ {[%clk 0:00:10.6]} 59. Bxc3 {[%clk 0:00:09.4]} 59... Nxc3+ {[%clk
0:00:11.5]} 60. Ke3 {[%clk 0:00:09.5]} 60... Nd5+ {[%clk 0:00:11.1]} 61. Kd4
{[%clk 0:00:09.2]} 61... Nf6 {[%clk 0:00:10.9]} 62. Rc8 {[%clk 0:00:07.8]} 62...
Nh7 {[%clk 0:00:05.1]} 63. Rxc6 {[%clk 0:00:07.4]} 63... Ng5 {[%clk 0:00:05.3]}
64. Rc5+ {[%clk 0:00:07.8]} 64... Kf6 {[%clk 0:00:05.9]} 65. Rc6+ {[%clk
0:00:08.1]} 65... Kf5 {[%clk 0:00:05.9]} 66. Rh6 {[%clk 0:00:08.2]} 66... Nf3+
{[%clk 0:00:06.5]} 67. Ke3 {[%clk 0:00:08]} 67... Kg5 {[%clk 0:00:07.2]} 68. Ra6
{[%clk 0:00:08]} 68... h4 {[%clk 0:00:07.2]} 69. Ra5+ {[%clk 0:00:08]} 69... Kg6
{[%clk 0:00:07.5]} 70. gxh4 {[%clk 0:00:08.4]} 70... Nxh4 {[%clk 0:00:08.3]} 71.
Kf4 {[%clk 0:00:08.4]} 71... Nf3 {[%clk 0:00:08.1]} 72. Kxg4 {[%clk 0:00:05.8]}
72... Nh2+ {[%clk 0:00:08.4]} 73. Kf4 {[%clk 0:00:05.6]} 73... Nf1 {[%clk
0:00:07.8]} 74. Ra2 {[%clk 0:00:06.2]} 74... Kh5 {[%clk 0:00:06]} 75. f3 {[%clk
0:00:06.5]} 75... Kh4 {[%clk 0:00:05]} 76. Rf2 {[%clk 0:00:05.9]} 76... Ng3
{[%clk 0:00:01.8]} 77. Rh2# {[%clk 0:00:05.2]} 1-0

[Event "Late-Titled-Tuesday-Blitz-October-24-2023"]
[Site "Chess.com"]
[Date "2023.10.24"]
[Round "10"]
[White "Veleamater"]
[Black "TheMagician"]
[Result "0-1"]
[WhiteElo "2305"]
[BlackElo "2183"]
[TimeControl "180+1"]
[EndTime "15:58:46 PDT"]
[Termination "TheMagician won on time"]

1. g3 {[%clk 0:03:00.9]} 1... d5 {[%clk 0:02:58.8]} 2. Bg2 {[%clk 0:03:00.6]}
2... c6 {[%clk 0:02:59.5]} 3. d3 {[%clk 0:03:01]} 3... Bf5 {[%clk 0:02:58]} 4.
Nf3 {[%clk 0:03:01.5]} 4... h6 {[%clk 0:02:57.5]} 5. O-O {[%clk 0:03:02.1]} 5...
e6 {[%clk 0:02:56.5]} 6. Nc3 {[%clk 0:03:02.4]} 6... Nf6 {[%clk 0:02:56.4]} 7.
h3 {[%clk 0:03:01.9]} 7... Be7 {[%clk 0:02:56.3]} 8. Ne5 {[%clk 0:03:01.4]} 8...
Nbd7 {[%clk 0:02:54.3]} 9. Nxd7 {[%clk 0:03:01.2]} 9... Qxd7 {[%clk 0:02:54.8]}
10. e4 {[%clk 0:03:01.7]} 10... dxe4 {[%clk 0:02:54.9]} 11. dxe4 {[%clk
0:03:01.7]} 11... Qxd1 {[%clk 0:02:54.5]} 12. Rxd1 {[%clk 0:03:02.6]} 12... Bh7
{[%clk 0:02:54.4]} 13. f4 {[%clk 0:03:03.1]} 13... Bb4 {[%clk 0:02:49.6]} 14.
Re1 {[%clk 0:02:58.6]} 14... O-O-O {[%clk 0:02:25.9]} 15. a3 {[%clk 0:02:54.5]}
15... Bxc3 {[%clk 0:02:22.4]} 16. bxc3 {[%clk 0:02:54.2]} 16... b6 {[%clk
0:02:15.7]} 17. g4 {[%clk 0:02:52.9]} 17... Kb7 {[%clk 0:02:11.9]} 18. Kf2
{[%clk 0:02:52.5]} 18... e5 {[%clk 0:02:11.9]} 19. f5 {[%clk 0:02:49.8]} 19...
Nd7 {[%clk 0:02:09.8]} 20. Be3 {[%clk 0:02:48.5]} 20... f6 {[%clk 0:02:09.1]}
21. Bf1 {[%clk 0:02:47.8]} 21... Bg8 {[%clk 0:02:07.8]} 22. Kf3 {[%clk
0:02:46.2]} 22... Bf7 {[%clk 0:02:06.6]} 23. h4 {[%clk 0:02:42.5]} 23... b5
{[%clk 0:02:06.6]} 24. Bd3 {[%clk 0:02:39.5]} 24... Nb6 {[%clk 0:02:04.4]} 25.
Rg1 {[%clk 0:02:37.9]} 25... Nc4 {[%clk 0:02:04.1]} 26. Bxc4 {[%clk 0:02:37.9]}
26... Bxc4 {[%clk 0:02:01.2]} 27. a4 {[%clk 0:02:32.7]} 27... a6 {[%clk
0:01:59.9]} 28. axb5 {[%clk 0:02:32.6]} 28... cxb5 {[%clk 0:01:59.8]} 29. g5
{[%clk 0:02:31.9]} 29... hxg5 {[%clk 0:01:55.5]} 30. hxg5 {[%clk 0:02:31.5]}
30... Rh3+ {[%clk 0:01:55.3]} 31. Kf2 {[%clk 0:02:29.7]} 31... Rh2+ {[%clk
0:01:40.7]} 32. Rg2 {[%clk 0:02:29]} 32... Rxg2+ {[%clk 0:01:40.5]} 33. Kxg2
{[%clk 0:02:29.3]} 33... Be2 {[%clk 0:01:36.1]} 34. Kf2 {[%clk 0:02:27.1]} 34...
Rd1 {[%clk 0:01:20.9]} 35. Ra2 {[%clk 0:01:49.4]} 35... Bc4 {[%clk 0:01:20.7]}
36. Rb2 {[%clk 0:01:48.1]} 36... a5 {[%clk 0:01:17.1]} 37. Bc5 {[%clk
0:01:41.3]} 37... fxg5 {[%clk 0:01:13.5]} 38. Be3 {[%clk 0:01:27.1]} 38... a4
{[%clk 0:01:13.4]} 39. Bc5 {[%clk 0:01:24.4]} 39... Kc6 {[%clk 0:01:12.3]} 40.
Bb4 {[%clk 0:01:23.2]} 40... Rf1+ {[%clk 0:01:08]} 41. Kg3 {[%clk 0:01:22.9]}
41... Rf4 {[%clk 0:01:08.5]} 42. Be7 {[%clk 0:01:13]} 42... Rxe4 {[%clk
0:01:08.2]} 43. Rb1 {[%clk 0:01:11.1]} 43... Rf4 {[%clk 0:01:05.7]} 44. Bxg5
{[%clk 0:01:08.5]} 44... Rxf5 {[%clk 0:01:05.3]} 45. Be3 {[%clk 0:01:05.9]}
45... a3 {[%clk 0:01:04.3]} 46. Rg1 {[%clk 0:01:03.3]} 46... g6 {[%clk 0:01:03]}
47. Kh4 {[%clk 0:01:01.2]} 47... Rh5+ {[%clk 0:01:02.2]} 48. Kg4 {[%clk
0:01:00.8]} 48... Be6+ {[%clk 0:01:02]} 49. Kf3 {[%clk 0:01:00.5]} 49... Bf5
{[%clk 0:00:59.1]} 50. Ra1 {[%clk 0:00:57.7]} 50... Rh3+ {[%clk 0:00:58.5]} 51.
Kf2 {[%clk 0:00:56.2]} 51... Rh2+ {[%clk 0:00:57.9]} 52. Kg3 {[%clk 0:00:53.8]}
52... Rxc2 {[%clk 0:00:58.8]} 53. Rxa3 {[%clk 0:00:53.4]} 53... Kd5 {[%clk
0:00:58.4]} 54. Ra5 {[%clk 0:00:50.9]} 54... Rxc3 {[%clk 0:00:57.9]} 55. Kf2
{[%clk 0:00:50.4]} 55... Ke4 {[%clk 0:00:57.6]} 56. Bd2 {[%clk 0:00:49.3]} 56...
Rc2 {[%clk 0:00:57.3]} 57. Ke1 {[%clk 0:00:48.9]} 57... Kd3 {[%clk 0:00:55.7]}
58. Rxb5 {[%clk 0:00:47.9]} 58... Be4 {[%clk 0:00:51.3]} 59. Bg5 {[%clk
0:00:37.6]} 59... Re2+ {[%clk 0:00:50.4]} 60. Kf1 {[%clk 0:00:37.6]} 60... Rg2
{[%clk 0:00:48]} 61. Rxe5 {[%clk 0:00:32.7]} 61... Rg4 {[%clk 0:00:39.1]} 62.
Kf2 {[%clk 0:00:28.2]} 62... Kd4 {[%clk 0:00:39.2]} 63. Ra5 {[%clk 0:00:27.5]}
63... Bd5 {[%clk 0:00:34.3]} 64. Be3+ {[%clk 0:00:22.5]} 64... Ke5 {[%clk
0:00:32.6]} 65. Ra7 {[%clk 0:00:18.1]} 65... Rg2+ {[%clk 0:00:32.5]} 66. Kf1
{[%clk 0:00:18]} 66... Rc2 {[%clk 0:00:26.7]} 67. Re7+ {[%clk 0:00:17]} 67...
Kf5 {[%clk 0:00:24.4]} 68. Bd4 {[%clk 0:00:16.1]} 68... Bf3 {[%clk 0:00:22.5]}
69. Rf7+ {[%clk 0:00:13.7]} 69... Ke4 {[%clk 0:00:21.2]} 70. Bf2 {[%clk
0:00:13.5]} 70... g5 {[%clk 0:00:21.5]} 71. Bg3 {[%clk 0:00:10.7]} 71... g4
{[%clk 0:00:20.4]} 72. Be1 {[%clk 0:00:10.5]} 72... Rh2 {[%clk 0:00:19.4]} 73.
Bg3 {[%clk 0:00:09.1]} 73... Rh3 {[%clk 0:00:19.7]} 74. Kf2 {[%clk 0:00:09.2]}
74... Rh8 {[%clk 0:00:16.4]} 75. Rf4+ {[%clk 0:00:08.8]} 75... Kd5 {[%clk
0:00:15.7]} 76. Rb4 {[%clk 0:00:09.7]} 76... Rc8 {[%clk 0:00:14.6]} 77. Ke3
{[%clk 0:00:09.5]} 77... Rc2 {[%clk 0:00:13.7]} 78. Bf2 {[%clk 0:00:08]} 78...
Re2+ {[%clk 0:00:13.5]} 79. Kf4 {[%clk 0:00:05.8]} 79... Rxf2 {[%clk 0:00:14.1]}
80. Rb5+ {[%clk 0:00:05.8]} 80... Kc4 {[%clk 0:00:13.8]} 81. Rg5 {[%clk
0:00:05.9]} 81... Ra2 {[%clk 0:00:12.4]} 82. Ke3 {[%clk 0:00:04.5]} 82... Re2+
{[%clk 0:00:11.5]} 83. Kf4 {[%clk 0:00:04.9]} 83... Re8 {[%clk 0:00:11.3]} 84.
Kg3 {[%clk 0:00:04.3]} 84... Bd5 {[%clk 0:00:10.3]} 85. Rxg4+ {[%clk 0:00:03.7]}
85... Kd3 {[%clk 0:00:10.9]} 86. Rg7 {[%clk 0:00:03.9]} 86... Be4 {[%clk
0:00:10.9]} 87. Kf4 {[%clk 0:00:04.2]} 87... Kd4 {[%clk 0:00:07.6]} 88. Rd7+
{[%clk 0:00:02.7]} 88... Bd5 {[%clk 0:00:08]} 89. Ra7 {[%clk 0:00:02.5]} 89...
Rf8+ {[%clk 0:00:08.1]} 90. Kg5 {[%clk 0:00:03.3]} 90... Ke5 {[%clk 0:00:08.3]}
91. Ra5 {[%clk 0:00:01.7]} 91... Rg8+ {[%clk 0:00:08.4]} 92. Kh6 {[%clk
0:00:02.1]} 92... Ke6 {[%clk 0:00:08.7]} 93. Ra6+ {[%clk 0:00:02.1]} 93... Kf5
{[%clk 0:00:07.7]} 94. Rb6 {[%clk 0:00:01.9]} 94... Rg1 {[%clk 0:00:06.7]} 95.
Kh7 {[%clk 0:00:01.6]} 95... Be6 {[%clk 0:00:07]} 96. Rb5+ {[%clk 0:00:01.7]}
96... Kf6 {[%clk 0:00:07.3]} 97. Rh5 {[%clk 0:00:02]} 97... Rg7+ {[%clk
0:00:06.3]} 98. Kh6 {[%clk 0:00:02.1]} 98... Rg8 {[%clk 0:00:06.7]} 99. Kh7
{[%clk 0:00:02.3]} 99... Rc8 {[%clk 0:00:07]} 100. Rh6+ {[%clk 0:00:02.3]}
100... Kf7 {[%clk 0:00:06.9]} 101. Rh5 {[%clk 0:00:01.7]} 101... Rc7 {[%clk
0:00:05.5]} 102. Kh6 {[%clk 0:00:02]} 102... Kf6 {[%clk 0:00:06]} 0-1

[Event "Late-Titled-Tuesday-Blitz-October-24-2023"]
[Site "Chess.com"]
[Date "2023.10.24"]
[Round "10"]
[White "DefiantChair"]
[Black "JackRodgers"]
[Result "1/2-1/2"]
[WhiteElo "2690"]
[BlackElo "2546"]
[TimeControl "180+1"]
[EndTime "15:59:38 PDT"]
[Termination "Game drawn by repetition"]

1. e4 {[%clk 0:03:00.9]} 1... c5 {[%clk 0:03:00.2]} 2. Nf3 {[%clk 0:03:01.1]}
2... g6 {[%clk 0:03:00.8]} 3. d4 {[%clk 0:03:01.5]} 3... cxd4 {[%clk 0:03:01.7]}
4. Nxd4 {[%clk 0:03:02.3]} 4... Bg7 {[%clk 0:03:01.4]} 5. c4 {[%clk 0:03:02.9]}
5... Nc6 {[%clk 0:03:01.6]} 6. Be3 {[%clk 0:03:03.2]} 6... Nf6 {[%clk
0:03:02.1]} 7. Nc3 {[%clk 0:03:03.3]} 7... Ng4 {[%clk 0:03:02.7]} 8. Qxg4 {[%clk
0:03:03.2]} 8... Nxd4 {[%clk 0:03:03.3]} 9. Qd1 {[%clk 0:03:03.8]} 9... e5
{[%clk 0:03:03.9]} 10. Qd2 {[%clk 0:02:59.2]} 10... d6 {[%clk 0:03:03.8]} 11.
Bd3 {[%clk 0:02:59.2]} 11... Be6 {[%clk 0:03:02.3]} 12. O-O {[%clk 0:02:59.4]}
12... O-O {[%clk 0:03:02.2]} 13. Rac1 {[%clk 0:02:59.1]} 13... a6 {[%clk
0:03:00.4]} 14. b3 {[%clk 0:02:57.4]} 14... Rc8 {[%clk 0:02:48.3]} 15. Ne2
{[%clk 0:02:40.9]} 15... Qd7 {[%clk 0:02:42.1]} 16. Nxd4 {[%clk 0:02:37.9]}
16... exd4 {[%clk 0:02:42]} 17. Bh6 {[%clk 0:02:38.6]} 17... Bxh6 {[%clk
0:02:28.6]} 18. Qxh6 {[%clk 0:02:39.5]} 18... f5 {[%clk 0:02:28.9]} 19. Qh4
{[%clk 0:02:32.4]} 19... b5 {[%clk 0:02:05.7]} 20. exf5 {[%clk 0:02:26.9]} 20...
Bxf5 {[%clk 0:02:02.7]} 21. Qxd4 {[%clk 0:02:26.4]} 21... Bxd3 {[%clk
0:01:57.6]} 22. Qxd3 {[%clk 0:02:27.3]} 22... bxc4 {[%clk 0:01:55.6]} 23. Rxc4
{[%clk 0:02:26.3]} 23... a5 {[%clk 0:01:51]} 24. Rd4 {[%clk 0:02:25.2]} 24...
Rc6 {[%clk 0:01:46.6]} 25. h3 {[%clk 0:02:22.4]} 25... Rf6 {[%clk 0:01:45.4]}
26. Qe4 {[%clk 0:02:13.6]} 26... Kg7 {[%clk 0:01:38.8]} 27. Rfd1 {[%clk
0:02:09.4]} 27... Qc7 {[%clk 0:01:36.2]} 28. R4d2 {[%clk 0:02:04.3]} 28... Rc1
{[%clk 0:01:33.4]} 29. Qe1 {[%clk 0:02:02.6]} 29... Rc5 {[%clk 0:01:29.9]} 30.
Rd4 {[%clk 0:01:57.2]} 30... Re5 {[%clk 0:01:27.5]} 31. Qd2 {[%clk 0:01:55.8]}
31... Ref5 {[%clk 0:01:25.7]} 32. Rxd6 {[%clk 0:01:51.8]} 32... Rxd6 {[%clk
0:00:54.8]} 33. Qxd6 {[%clk 0:01:51.1]} 33... Qc2 {[%clk 0:00:55.1]} 34. Qd7+
{[%clk 0:01:46.6]} 34... Kh6 {[%clk 0:00:49.9]} 35. Qd2+ {[%clk 0:01:46.4]}
35... Qxd2 {[%clk 0:00:50.6]} 36. Rxd2 {[%clk 0:01:47.3]} 36... Rc5 {[%clk
0:00:50.5]} 37. g3 {[%clk 0:01:46.9]} 37... Kg5 {[%clk 0:00:50.4]} 38. Kg2
{[%clk 0:01:46.9]} 38... h5 {[%clk 0:00:50.6]} 39. Rd4 {[%clk 0:01:47]} 39...
Kf5 {[%clk 0:00:48.6]} 40. a3 {[%clk 0:01:45.8]} 40... Rc3 {[%clk 0:00:35.9]}
41. Rd5+ {[%clk 0:01:44.2]} 41... Kf6 {[%clk 0:00:35.2]} 42. Rb5 {[%clk
0:01:43.9]} 42... Kg7 {[%clk 0:00:31.8]} 43. a4 {[%clk 0:01:43.8]} 43... Kh6
{[%clk 0:00:31.4]} 44. h4 {[%clk 0:01:43.9]} 44... Kg7 {[%clk 0:00:31.4]} 45.
Kf1 {[%clk 0:01:43.7]} 45... Rc1+ {[%clk 0:00:28.8]} 46. Ke2 {[%clk 0:01:44]}
46... Rb1 {[%clk 0:00:29.7]} 47. Kd3 {[%clk 0:01:44]} 47... Rb2 {[%clk
0:00:28.8]} 48. f3 {[%clk 0:01:41.5]} 48... Rg2 {[%clk 0:00:25.8]} 49. Rxa5
{[%clk 0:01:40.3]} 49... Rxg3 {[%clk 0:00:26]} 50. Rg5 {[%clk 0:01:40.3]} 50...
Rxf3+ {[%clk 0:00:22.6]} 51. Kc4 {[%clk 0:01:40.4]} 51... Rf4+ {[%clk
0:00:22.7]} 52. Kb5 {[%clk 0:01:40.1]} 52... Rxh4 {[%clk 0:00:23.6]} 53. a5
{[%clk 0:01:40.3]} 53... Rg4 {[%clk 0:00:19.8]} 54. Rc5 {[%clk 0:01:32.4]} 54...
Rg3 {[%clk 0:00:19.2]} 55. b4 {[%clk 0:01:31]} 55... Ra3 {[%clk 0:00:19]} 56.
Kb6 {[%clk 0:01:31.1]} 56... h4 {[%clk 0:00:19.7]} 57. a6 {[%clk 0:01:31.6]}
57... h3 {[%clk 0:00:16.6]} 58. Rc1 {[%clk 0:01:26.4]} 58... g5 {[%clk
0:00:15.8]} 59. Kb7 {[%clk 0:01:27]} 59... Kh6 {[%clk 0:00:11.7]} 60. a7 {[%clk
0:01:27.4]} 60... g4 {[%clk 0:00:10.7]} 61. b5 {[%clk 0:01:28]} 61... g3 {[%clk
0:00:09.9]} 62. Rh1 {[%clk 0:01:28.2]} 62... h2 {[%clk 0:00:09.7]} 63. b6 {[%clk
0:01:28.4]} 63... Kg5 {[%clk 0:00:09.4]} 64. a8=Q {[%clk 0:01:28.9]} 64... Rxa8
{[%clk 0:00:09.5]} 65. Kxa8 {[%clk 0:01:29.8]} 65... g2 {[%clk 0:00:09.6]} 66.
Rxh2 {[%clk 0:01:26.3]} 66... g1=Q {[%clk 0:00:10.1]} 67. b7 {[%clk 0:01:15.3]}
67... Qa1+ {[%clk 0:00:07]} 68. Kb8 {[%clk 0:01:14.8]} 68... Qe5+ {[%clk
0:00:07.4]} 69. Ka7 {[%clk 0:01:14.7]} 69... Qa5+ {[%clk 0:00:07.1]} 70. Kb8
{[%clk 0:01:14.4]} 70... Qe5+ {[%clk 0:00:07.2]} 71. Ka7 {[%clk 0:01:13.7]}
71... Qc5+ {[%clk 0:00:06.1]} 72. Kb8 {[%clk 0:01:11.7]} 72... Kf6 {[%clk
0:00:05.6]} 73. Rh7 {[%clk 0:00:57.1]} 73... Ke6 {[%clk 0:00:02.1]} 74. Rc7
{[%clk 0:00:54]} 74... Qf8+ {[%clk 0:00:02]} 75. Rc8 {[%clk 0:00:54.5]} 75...
Qd6+ {[%clk 0:00:02.5]} 76. Ka7 {[%clk 0:00:54]} 76... Qa3+ {[%clk 0:00:03.1]}
77. Kb6 {[%clk 0:00:54.4]} 77... Qb4+ {[%clk 0:00:03.6]} 78. Kc7 {[%clk
0:00:54.7]} 78... Qc5+ {[%clk 0:00:03.4]} 79. Kb8 {[%clk 0:00:54.1]} 79... Qb4
{[%clk 0:00:04]} 80. Rc6+ {[%clk 0:00:50.9]} 80... Kd7 {[%clk 0:00:03.6]} 81.
Rc7+ {[%clk 0:00:51.1]} 81... Kd6 {[%clk 0:00:03.6]} 82. Kc8 {[%clk 0:00:47]}
82... Qg4+ {[%clk 0:00:02.7]} 83. Kb8 {[%clk 0:00:46.6]} 83... Qf4 {[%clk
0:00:02.4]} 84. Ka8 {[%clk 0:00:31.9]} 84... Qa4+ {[%clk 0:00:02.1]} 85. Kb8
{[%clk 0:00:32.4]} 85... Qa5 {[%clk 0:00:02.5]} 86. Rc8 {[%clk 0:00:31]} 86...
Qb6 {[%clk 0:00:02.3]} 87. Rc1 {[%clk 0:00:26.8]} 87... Kd7 {[%clk 0:00:02.4]}
88. Rd1+ {[%clk 0:00:23.2]} 88... Kc6 {[%clk 0:00:02.7]} 89. Rc1+ {[%clk
0:00:23.6]} 89... Kd7 {[%clk 0:00:03.3]} 90. Ka8 {[%clk 0:00:21.9]} 90... Qa6+
{[%clk 0:00:02.9]} 91. Kb8 {[%clk 0:00:22.4]} 91... Qd6+ {[%clk 0:00:03.3]} 92.
Ka7 {[%clk 0:00:20.6]} 92... Qa3+ {[%clk 0:00:03.9]} 93. Kb6 {[%clk 0:00:21]}
93... Qb2+ {[%clk 0:00:04.4]} 94. Ka7 {[%clk 0:00:21]} 94... Qa3+ {[%clk
0:00:04]} 95. Kb6 {[%clk 0:00:21.3]} 95... Qd6+ {[%clk 0:00:03.5]} 96. Ka7
{[%clk 0:00:19.7]} 96... Qd4+ {[%clk 0:00:03.8]} 97. Ka8 {[%clk 0:00:18]} 97...
Qa4+ {[%clk 0:00:02.8]} 98. Kb8 {[%clk 0:00:18.1]} 98... Qf4+ {[%clk 0:00:03.4]}
99. Ka7 {[%clk 0:00:17.8]} 99... Qa4+ {[%clk 0:00:03.7]} 100. Kb8 {[%clk
0:00:17.9]} 100... Kd6 {[%clk 0:00:04]} 101. Rb1 {[%clk 0:00:16.2]} 101... Qe8+
{[%clk 0:00:03.3]} 102. Ka7 {[%clk 0:00:15.7]} 102... Qa4+ {[%clk 0:00:03.5]}
103. Kb6 {[%clk 0:00:15.9]} 103... Qc6+ {[%clk 0:00:02.6]} 104. Ka5 {[%clk
0:00:16.3]} 104... Qc7+ {[%clk 0:00:02.7]} 105. Rb6+ {[%clk 0:00:14.4]} 105...
Kd7 {[%clk 0:00:02.2]} 106. b8=Q {[%clk 0:00:14.7]} 106... Qc3+ {[%clk
0:00:02.5]} 107. Rb4 {[%clk 0:00:14.7]} 107... Qa3+ {[%clk 0:00:03]} 108. Kb5
{[%clk 0:00:14.7]} 108... Qd3+ {[%clk 0:00:03.6]} 109. Ka4 {[%clk 0:00:14.8]}
109... Qc2+ {[%clk 0:00:03.1]} 110. Rb3 {[%clk 0:00:15]} 110... Qa2+ {[%clk
0:00:03.2]} 111. Kb4 {[%clk 0:00:15.3]} 111... Qd2+ {[%clk 0:00:03.9]} 112. Ka3
{[%clk 0:00:15.2]} 112... Qc1+ {[%clk 0:00:04]} 113. Rb2 {[%clk 0:00:15.6]}
113... Qa1+ {[%clk 0:00:04.4]} 114. Kb3 {[%clk 0:00:15.8]} 114... Qd1+ {[%clk
0:00:05.1]} 115. Ka2 {[%clk 0:00:15.5]} 115... Qa4+ {[%clk 0:00:05.5]} 116. Kb1
{[%clk 0:00:15.2]} 116... Qd1+ {[%clk 0:00:06.3]} 117. Ka2 {[%clk 0:00:12.4]}
117... Qa4+ {[%clk 0:00:07.2]} 118. Kb1 {[%clk 0:00:13.3]} 118... Qd1+ {[%clk
0:00:07.7]} 119. Ka2 {[%clk 0:00:14]} 1/2-1/2

[Event "Late-Titled-Tuesday-Blitz-October-24-2023"]
[Site "Chess.com"]
[Date "2023.10.24"]
[Round "11"]
[White "topin8"]
[Black "Balla_Tamas"]
[Result "1-0"]
[WhiteElo "2465"]
[BlackElo "2337"]
[TimeControl "180+1"]
[EndTime "16:01:49 PDT"]
[Termination "topin8 won by resignation"]

1. Nf3 {[%clk 0:02:55.9]} 1... c5 {[%clk 0:03:00.1]} 2. g3 {[%clk 0:02:56.1]}
2... Nc6 {[%clk 0:03:00.4]} 3. Bg2 {[%clk 0:02:56.6]} 3... g6 {[%clk 0:03:01]}
4. O-O {[%clk 0:02:56.9]} 4... Bg7 {[%clk 0:03:01.6]} 5. c4 {[%clk 0:02:57.6]}
5... e6 {[%clk 0:03:00.2]} 6. Nc3 {[%clk 0:02:55.7]} 6... Nge7 {[%clk
0:03:00.2]} 7. Rb1 {[%clk 0:02:53.9]} 7... d5 {[%clk 0:03:00.1]} 8. cxd5 {[%clk
0:02:53.8]} 8... exd5 {[%clk 0:03:01]} 9. d3 {[%clk 0:02:54.2]} 9... O-O {[%clk
0:03:00.8]} 10. Bd2 {[%clk 0:02:54.6]} 10... Be6 {[%clk 0:03:00.5]} 11. a3
{[%clk 0:02:54.9]} 11... Qd7 {[%clk 0:03:00.9]} 12. b4 {[%clk 0:02:54.6]} 12...
cxb4 {[%clk 0:03:00]} 13. axb4 {[%clk 0:02:55.5]} 13... Bh3 {[%clk 0:03:00.5]}
14. b5 {[%clk 0:02:47.8]} 14... Nd4 {[%clk 0:02:44.2]} 15. Bxh3 {[%clk
0:02:24.3]} 15... Nxf3+ {[%clk 0:02:39.8]} 16. Kg2 {[%clk 0:02:22.1]} 16...
Qxh3+ {[%clk 0:02:40.7]} 17. Kxh3 {[%clk 0:02:21.9]} 1-0